fUST/lending_fUST_20240819
["ID","MTS","AMOUNT","RATE_DAILY","PERIOD"]
[335232309,1724001044033,-624.47919493,0.00016438,2]
[335232310,1724001044043,-772.16,0.00016438,2]
[335232311,1724001044054,-500.0,0.00016438,2]
[335232312,1724001044064,-500.0,0.00016438,2]
[335232313,1724001044074,-500.0,0.00016438,2]
[335232314,1724001044085,-500.0,0.00016438,2]
[335232315,1724001044095,-250.085574,0.00016438,2]
[335232316,1724001044104,-558.34,0.00016438,2]
[335232317,1724001044114,-500.0,0.00016438,2]
[335232318,1724001044124,-250.085574,0.00016438,2]
[335232319,1724001044135,-500.0,0.00016438,2]
[335232320,1724001044145,-508.53760235,0.00016438,2]
[335232321,1724001044155,-500.0,0.00016438,2]
[335232322,1724001044165,-1031.49,0.00016438,2]
[335232323,1724001044176,-1000.0,0.00016438,2]
[335232324,1724001044185,-999.759285,0.00016438,2]
[335232325,1724001044195,-500.0,0.00016438,2]
[335232326,1724001044206,-500.0,0.00016438,2]
[335232327,1724001044220,-999.759285,0.00016438,2]
[335232328,1724001044230,-500.0,0.00016438,2]
[335232329,1724001044240,-903.055524,0.00016438,2]
[335232330,1724001044250,-817.88,0.00016438,2]
[335232331,1724001044260,-866.79,0.00016438,2]
[335232332,1724001044270,-500.0,0.00016438,2]
[335232333,1724001044280,-903.055524,0.00016438,2]
[335232334,1724001044290,-632.06211442,0.00016438,2]
[335232335,1724001044300,-500.0,0.00016438,2]
[335232336,1724001044310,-500.0,0.00016438,2]
[335232337,1724001044320,-500.0,0.00016438,2]
[335232338,1724001044330,-691.48,0.00016438,2]
[335232339,1724001044340,-500.0,0.00016438,2]
[335232340,1724001044350,-500.42374087,0.00016438,2]
[335232341,1724001044360,-500.0,0.00016438,2]
[335232342,1724001044370,-500.0,0.00016438,2]
[335232343,1724001044380,-500.0,0.00016438,2]
[335232344,1724001044390,-500.0,0.00016438,2]
[335232345,1724001044400,-500.0,0.00016438,2]
[335232346,1724001044410,-500.0,0.00016438,2]
[335232347,1724001044420,-500.0,0.00016438,2]
[335232348,1724001044429,-500.0,0.00016438,2]
[335232349,1724001044439,-500.0,0.00016438,2]
[335232350,1724001044452,-500.0,0.00016438,2]
[335232351,1724001044462,-500.0,0.00016438,2]
[335232352,1724001044472,-500.0,0.00016438,2]
[335232353,1724001044482,-500.0,0.00016438,2]
[335232354,1724001044492,-500.0,0.00016438,2]
[335232355,1724001044501,-500.0,0.00016438,2]
[335232356,1724001044511,-500.0,0.00016438,2]
[335232357,1724001044521,-500.0,0.00016438,2]
[335232358,1724001044531,-500.0,0.00016438,2]
[335232359,1724001044541,-502.12800461,0.00016438,2]
[335232360,1724001044551,-500.0,0.00016438,2]
[335232361,1724001044562,-500.0,0.00016438,2]
[335232362,1724001044576,-500.0,0.00016438,2]
[335232363,1724001044586,-500.0,0.00016438,2]
[335232364,1724001044595,-500.0,0.00016438,2]
[335232365,1724001044606,-500.0,0.00016438,2]
[335232366,1724001044616,-500.0,0.00016438,2]
[335232367,1724001044626,-500.0,0.00016438,2]
[335232368,1724001044635,-500.0,0.00016438,2]
[335232369,1724001044649,-468.77682635,0.00016438,2]
[335232370,1724001044659,-501.50506461,0.00016438,2]
[335232371,1724001044669,-500.0,0.00016438,2]
[335232372,1724001044678,-500.0,0.00016438,2]
[335232373,1724001044688,-509.54630625,0.00016438,2]
[335232374,1724001044700,-500.65763525,0.00016438,2]
[335232375,1724001044709,-444.447314,0.00016438,2]
[335232376,1724001044719,-500.0,0.00016438,2]
[335232377,1724001044729,-500.0,0.00016438,2]
[335232378,1724001044739,-444.447314,0.00016438,2]
[335232379,1724001044749,-500.0,0.00016438,2]
[335232380,1724001044759,-151.0,0.00016438,2]
[335232381,1724001044769,-500.0,0.00016438,2]
[335232382,1724001044779,-151.0,0.00016438,2]
[335232383,1724001044788,-500.0,0.00016438,2]
[335232384,1724001044799,-500.0,0.00016438,2]
[335232385,1724001044809,-1016.59,0.00016438,2]
[335232386,1724001044819,-500.0,0.00016438,2]
[335232387,1724001044829,-501.64080858,0.00016438,2]
[335232388,1724001044839,-500.0,0.00016438,2]
[335232389,1724001044848,-500.0,0.00016438,2]
[335232390,1724001044858,-508.1681348,0.00016438,2]
[335232391,1724001044868,-500.0,0.00016438,2]
[335232392,1724001044878,-500.0,0.00016438,2]
[335232393,1724001044889,-500.0,0.00016438,2]
[335232394,1724001044900,-1212.69,0.00016438,2]
[335232395,1724001044911,-620.55,0.00016438,2]
[335232396,1724001044922,-500.0,0.00016438,2]
[335232397,1724001044933,-500.0,0.00016438,2]
[335232398,1724001044943,-500.0,0.00016438,2]
[335232399,1724001044954,-500.0,0.00016438,2]
[335232400,1724001044963,-500.0,0.00016438,2]
[335232401,1724001044973,-500.0,0.00016438,2]
[335232402,1724001044983,-500.0,0.00016438,2]
[335232403,1724001044992,-500.0,0.00016438,2]
[335232404,1724001045002,-505.45642932,0.00016438,2]
[335232405,1724001045011,-180.964732,0.00016438,2]
[335232406,1724001045022,-333.52572178,0.00016438,2]
[335232407,1724001045032,-500.0,0.00016438,2]
[335232408,1724001045042,-151.0,0.00016438,2]
[335232409,1724001045051,-500.0,0.00016438,2]
[335232410,1724001045061,-151.0,0.00016438,2]
[335232411,1724001045072,-508.60930539,0.00016438,2]
[335232412,1724001045205,-180.964732,0.00016438,2]
[335232413,1724001045216,-500.0,0.00016438,2]
[335232414,1724001045226,-500.0,0.00016438,2]
[335232415,1724001045236,-500.0,0.00016438,2]
[335232416,1724001045245,-500.0,0.00016438,2]
[335232417,1724001045255,-1043.99,0.00016438,2]
[335232418,1724001045264,-500.0,0.00016438,2]
[335232419,1724001045274,-4145.13,0.00016438,2]
[335232420,1724001045284,-500.0,0.00016438,2]
[335232421,1724001045294,-766.69,0.00016438,2]
[335232422,1724001045303,-500.0,0.00016438,2]
[335232424,1724001045313,-500.0,0.00016438,2]
[335232425,1724001045323,-500.0,0.00016438,2]
[335232426,1724001045332,-500.0,0.00016438,2]
[335232427,1724001045342,-1461.634586,0.00016438,2]
[335232428,1724001045352,-1013.64333,0.00016438,2]
[335232429,1724001045361,-1174.98,0.00016438,2]
[335232430,1724001045371,-500.0,0.00016438,2]
[335232431,1724001045380,-500.0,0.00016438,2]
[335232432,1724001045391,-1461.634586,0.00016438,2]
[335232433,1724001045402,-500.0,0.00016438,2]
[335232434,1724001045412,-1013.64333,0.00016438,2]
[335232435,1724001045422,-500.0,0.00016438,2]
[335232436,1724001045432,-454.33912668,0.00016438,2]
[335232437,1724001045444,-500.0,0.00016438,2]
[335232438,1724001045456,-594.0,0.00016438,2]
[335232439,1724001045466,-475.592611,0.00016438,2]
[335232440,1724001045476,-500.0,0.00016438,2]
[335232442,1724001045485,-500.0,0.00016438,2]
[335232443,1724001045495,-1015.96,0.00016438,2]
[335232444,1724001045507,-500.0,0.00016438,2]
[335232445,1724001045516,-693.24,0.00016438,2]
[335232446,1724001045526,-500.0,0.00016438,2]
[335232447,1724001045535,-487.89394,0.00016438,2]
[335232449,1724001045545,-475.592611,0.00016438,2]
[335232450,1724001045554,-1052.8,0.00016438,2]
[335232451,1724001045565,-435.9610758,0.00016438,2]
[335232452,1724001045577,-249.65520324,0.00016438,2]
[335232453,1724001045586,-500.0,0.00016438,2]
[335232454,1724001045595,-500.0,0.00016438,2]
[335232455,1724001045606,-500.0,0.00016438,2]
[335232456,1724001045615,-500.0,0.00016438,2]
[335232457,1724001045625,-487.89394,0.00016438,2]
[335232458,1724001045635,-305.87672062,0.00016438,2]
[335232459,1724001045646,-500.0,0.00016438,2]
[335232460,1724001045656,-500.0,0.00016438,2]
[335232462,1724001045665,-500.0,0.00016438,2]
[335232464,1724001045675,-697.88,0.00016438,2]
[335232465,1724001045684,-1232.91,0.00016438,2]
[335232466,1724001045693,-500.0,0.00016438,2]
[335232467,1724001045704,-2818.67,0.00016438,2]
[335232469,1724001045714,-594.6,0.00016438,2]
[335232471,1724001045724,-500.0,0.00016438,2]
[335232473,1724001045737,-520.14077379,0.00016438,2]
[335232475,1724001045748,-504.50137407,0.00016438,2]
[335232477,1724001045758,-500.0,0.00016438,2]
[335232479,1724001045768,-500.0,0.00016438,2]
[335232481,1724001045779,-500.0,0.00016438,2]
[335232483,1724001045790,-500.0,0.00016438,2]
[335232485,1724001045799,-864.0,0.00016438,2]
[335232487,1724001045809,-538.73,0.00016438,2]
[335232489,1724001045820,-500.0,0.00016438,2]
[335232492,1724001045831,-500.0,0.00016438,2]
[335232494,1724001045841,-500.0,0.00016438,2]
[335232496,1724001045852,-500.0,0.00016438,2]
[335232498,1724001045861,-500.0,0.00016438,2]
[335232500,1724001045870,-500.0,0.00016438,2]
[335232502,1724001045880,-1856.56,0.00016438,2]
[335232504,1724001045890,-500.0,0.00016438,2]
[335232506,1724001045899,-1152.69,0.00016438,2]
[335232508,1724001045908,-500.0,0.00016438,2]
[335232510,1724001045918,-500.0,0.00016438,2]
[335232512,1724001045927,-500.0,0.00016438,2]
[335232514,1724001045936,-503.76485255,0.00016438,2]
[335232516,1724001045947,-500.0,0.00016438,2]
[335232518,1724001045956,-500.0,0.00016438,2]
[335232520,1724001045966,-571.87,0.00016438,2]
[335232522,1724001045975,-500.0,0.00016438,2]
[335232525,1724001045988,-581.76,0.00016438,2]
[335232526,1724001045999,-500.0,0.00016438,2]
[335232529,1724001046009,-500.0,0.00016438,2]
[335232531,1724001046020,-500.0,0.00016438,2]
[335232533,1724001046029,-1332.19,0.00016438,2]
[335232535,1724001046040,-500.0,0.00016438,2]
[335232536,1724001046051,-1947.56,0.00016438,2]
[335232538,1724001046062,-500.0,0.00016438,2]
[335232540,1724001046072,-602.24,0.00016438,2]
[335232542,1724001046082,-500.0,0.00016438,2]
[335232543,1724001046091,-500.0,0.00016438,2]
[335232545,1724001046101,-500.0,0.00016438,2]
[335232547,1724001046110,-500.0,0.00016438,2]
[335232549,1724001046120,-500.0,0.00016438,2]
[335232551,1724001046129,-500.0,0.00016438,2]
[335232552,1724001046139,-500.0,0.00016438,2]
[335232553,1724001046148,-500.0,0.00016438,2]
[335232554,1724001046157,-151.0,0.00016438,2]
[335232555,1724001046167,-500.0,0.00016438,2]
[335232556,1724001046177,-500.0,0.00016438,2]
[335232557,1724001046186,-500.0,0.00016438,2]
[335232558,1724001046197,-867.87,0.00016438,2]
[335232559,1724001046206,-289.104621,0.00016438,2]
[335232560,1724001046215,-624.5,0.00016438,2]
[335232561,1724001046225,-500.0,0.00016438,2]
[335232562,1724001046235,-500.0,0.00016438,2]
[335232563,1724001046247,-500.0,0.00016438,2]
[335232564,1724001046256,-500.0,0.00016438,2]
[335232565,1724001046265,-501.7969771,0.00016438,2]
[335232566,1724001046275,-500.0,0.00016438,2]
[335232567,1724001046284,-500.0,0.00016438,2]
[335232568,1724001046294,-540.3,0.00016438,2]
[335232569,1724001046304,-500.0,0.00016438,2]
[335232570,1724001046315,-500.0,0.00016438,2]
[335232571,1724001046325,-218.84138075,0.00016438,2]
[335232572,1724001046335,-500.0,0.00016438,2]
[335232573,1724001046346,-500.0,0.00016438,2]
[335232574,1724001046356,-500.0,0.00016438,2]
[335232575,1724001046366,-500.0,0.00016438,2]
[335232576,1724001046377,-7055.48,0.00016438,2]
[335232577,1724001046388,-503.86934896,0.00016438,2]
[335232578,1724001046398,-500.0,0.00016438,2]
[335232579,1724001046408,-500.0,0.00016438,2]
[335232580,1724001046419,-500.0,0.00016438,2]
[335232581,1724001046430,-500.0,0.00016438,2]
[335232582,1724001046440,-880.81,0.00016438,2]
[335232583,1724001046450,-560.09,0.00016438,2]
[335232584,1724001046462,-580.3,0.00016438,2]
[335232585,1724001046473,-500.0,0.00016438,2]
[335232586,1724001046485,-500.0,0.00016438,2]
[335232587,1724001046495,-1044.93,0.00016438,2]
[335232588,1724001046504,-500.0,0.00016438,2]
[335232589,1724001046513,-578.45394227,0.00016438,2]
[335232590,1724001046524,-589.5,0.00016438,2]
[335232591,1724001046533,-2651.2,0.00016438,2]
[335232592,1724001046543,-500.0,0.00016438,2]
[335232593,1724001046554,-500.0,0.00016438,2]
[335232594,1724001046569,-304.73344824,0.00016438,2]
[335232595,1724001046579,-634.36,0.00016438,2]
[335232596,1724001046588,-500.0,0.00016438,2]
[335232597,1724001046599,-500.0,0.00016438,2]
[335232598,1724001046610,-500.0,0.00016438,2]
[335232599,1724001046619,-151.0,0.00016438,2]
[335232600,1724001046628,-500.0,0.00016438,2]
[335232601,1724001046640,-2044.34,0.00016438,2]
[335232602,1724001046650,-649.21,0.00016438,2]
[335232603,1724001046662,-500.0,0.00016438,2]
[335232604,1724001046671,-991.84,0.00016438,2]
[335232605,1724001046681,-151.0,0.00016438,2]
[335232606,1724001046690,-802.96,0.00016438,2]
[335232607,1724001046702,-500.0,0.00016438,2]
[335232608,1724001046711,-500.0,0.00016438,2]
[335232609,1724001046721,-1187.29,0.00016438,2]
[335232610,1724001046732,-500.0,0.00016438,2]
[335232611,1724001046741,-818.92,0.00016438,2]
[335232612,1724001046751,-501.22456477,0.00016438,2]
[335232613,1724001046762,-615.98,0.00016438,2]
[335232614,1724001046771,-500.0,0.00016438,2]
[335232615,1724001046780,-500.0,0.00016438,2]
[335232616,1724001046789,-500.0,0.00016438,2]
[335232617,1724001046799,-500.0,0.00016438,2]
[335232618,1724001046808,-500.0,0.00016438,2]
[335232619,1724001046818,-915.13,0.00016438,2]
[335232620,1724001046827,-500.0,0.00016438,2]
[335232621,1724001046837,-976.56,0.00016438,2]
[335232622,1724001046847,-672.81,0.00016438,2]
[335232623,1724001046856,-471.66054734,0.00016438,2]
[335232624,1724001046865,-500.0,0.00016438,2]
[335232625,1724001046874,-843.71,0.00016438,2]
[335232626,1724001046883,-500.0,0.00016438,2]
[335232627,1724001046893,-719.16,0.00016438,2]
[335232628,1724001046903,-500.0,0.00016438,2]
[335232629,1724001046912,-751.19,0.00016438,2]
[335232630,1724001046921,-500.0,0.00016438,2]
[335232631,1724001046931,-500.0,0.00016438,2]
[335232632,1724001046940,-765.3,0.00016438,2]
[335232633,1724001047034,-500.0,0.00016438,2]
[335232634,1724001047051,-794.52,0.00016438,2]
[335232635,1724001047061,-500.0,0.00016438,2]
[335232636,1724001047070,-500.0,0.00016438,2]
[335232637,1724001047080,-500.0,0.00016438,2]
[335232638,1724001047089,-500.0,0.00016438,2]
[335232639,1724001047100,-759.09,0.00016438,2]
[335232640,1724001047109,-944.712646,0.00016438,2]
[335232641,1724001047119,-500.0,0.00016438,2]
[335232642,1724001047128,-500.0,0.00016438,2]
[335232643,1724001047137,-151.0,0.00016438,2]
[335232644,1724001047146,-151.0,0.00016438,2]
[335232645,1724001047156,-524.49331253,0.00016438,2]
[335232646,1724001047167,-1080.316087,0.00016438,2]
[335232647,1724001047177,-500.0,0.00016438,2]
[335232648,1724001047188,-944.712646,0.00016438,2]
[335232649,1724001047200,-398.32735633,0.00016438,2]
[335232650,1724001047215,-500.0,0.00016438,2]
[335232651,1724001047225,-1080.316087,0.00016438,2]
[335232652,1724001047235,-506.2734219,0.00016438,2]
[335232653,1724001047246,-500.0,0.00016438,2]
[335232654,1724001047257,-500.0,0.00016438,2]
[335232655,1724001047266,-500.0,0.00016438,2]
[335232656,1724001047276,-757.9,0.00016438,2]
[335232657,1724001047286,-500.0,0.00016438,2]
[335232658,1724001047295,-504.98050766,0.00016438,2]
[335232659,1724001047306,-151.0,0.00016438,2]
[335232660,1724001047315,-500.0,0.00016438,2]
[335232661,1724001047324,-814.14,0.00016438,2]
[335232662,1724001047333,-151.0,0.00016438,2]
[335232663,1724001047343,-302.98493,0.00016438,2]
[335232664,1724001047352,-520.733221,0.00016438,2]
[335232665,1724001047362,-500.0,0.00016438,2]
[335232666,1724001047372,-1907.96,0.00016438,2]
[335232667,1724001047381,-4150.99,0.00016438,2]
[335232668,1724001047391,-4150.99,0.00016438,2]
[335232669,1724001047400,-4150.99,0.00016438,2]
[335232670,1724001047410,-500.0,0.00016438,2]
[335232671,1724001047420,-1024.25,0.00016438,2]
[335232672,1724001047430,-4150.99,0.00016438,2]
[335232673,1724001047442,-202.48729624,0.00016438,2]
[335232674,1724001047454,-4150.99,0.00016438,2]
[335232675,1724001047464,-4150.99,0.00016438,2]
[335232676,1724001047476,-302.98493,0.00016438,2]
[335232677,1724001047487,-4150.99,0.00016438,2]
[335232678,1724001047498,-1457.872465,0.00016438,2]
[335232679,1724001047508,-4150.99,0.00016438,2]
[335232680,1724001047518,-4150.99,0.00016438,2]
[335232681,1724001047528,-4150.99,0.00016438,2]
[335232682,1724001047537,-4150.99,0.00016438,2]
[335232683,1724001047546,-501.47494704,0.00016438,2]
[335232684,1724001047556,-4150.99,0.00016438,2]
[335232685,1724001047569,-4150.99,0.00016438,2]
[335232686,1724001047578,-4150.99,0.00016438,2]
[335232687,1724001047587,-4150.99,0.00016438,2]
[335232688,1724001047598,-4150.99,0.00016438,2]
[335232689,1724001047609,-1457.872465,0.00016438,2]
[335232690,1724001047619,-500.0,0.00016438,2]
[335232691,1724001047630,-500.0,0.00016438,2]
[335232692,1724001047640,-4150.99,0.00016438,2]
[335232693,1724001047653,-500.0,0.00016438,2]
[335232694,1724001047662,-4150.99,0.00016438,2]
[335232695,1724001047672,-151.0,0.00016438,2]
[335232696,1724001047681,-4150.99,0.00016438,2]
[335232697,1724001047690,-4150.99,0.00016438,2]
[335232698,1724001047703,-4150.99,0.00016438,2]
[335232699,1724001047715,-4150.99,0.00016438,2]
[335232700,1724001047724,-4150.99,0.00016438,2]
[335232701,1724001047734,-4151.14206443,0.00016438,2]
[335232702,1724001047743,-504.60721057,0.00016438,2]
[335232703,1724001047752,-1288.38,0.00016438,2]
[335232704,1724001047762,-625.16481691,0.00016438,2]
[335232705,1724001047771,-500.0,0.00016438,2]
[335232706,1724001047782,-818.91,0.00016438,2]
[335232707,1724001047792,-500.0,0.00016438,2]
[335232708,1724001047802,-500.0,0.00016438,2]
[335232709,1724001047811,-648.34,0.00016438,2]
[335232710,1724001047820,-500.0,0.00016438,2]
[335232711,1724001047830,-500.0,0.00016438,2]
[335232712,1724001047839,-153.0,0.000165,2]
[335232713,1724001047849,-153.0,0.000165,2]
[335232714,1724001047858,-153.0,0.000165,2]
[335232715,1724001047867,-153.0,0.000165,2]
[335232716,1724001047877,-1000.0,0.00016542,2]
[335232717,1724001047887,-207.5283979,0.00016603,2]
[335232718,1724001047896,-207.5283979,0.00016603,2]
[335232719,1724001047905,-207.5283979,0.00016603,2]
[335232720,1724001047914,-207.5283979,0.00016603,2]
[335232721,1724001047923,-207.5283979,0.00016603,2]
[335232722,1724001047932,-207.5283979,0.00016603,2]
[335232723,1724001047941,-151.0,0.00016603,2]
[335232724,1724001047953,-5188.49053978,0.00016631,2]
[335232725,1724001047964,-1000.0,0.00016637,2]
[335232726,1724001047973,-1000.0,0.00016659,2]
[335232727,1724001047983,-150.0,0.00016686,2]
[335232728,1724001047994,-150.01,0.00016711,2]
[335232729,1724001048005,-3246.18840817,0.00016711,2]
[335232730,1724001048015,-500.0,0.00016712,2]
[335232731,1724001048023,-505.7191295,0.00016712,2]
[335232732,1724001048035,-484.09248232,0.00016712,2]
[335232733,1724001048043,-500.0,0.00016712,2]
[335232734,1724001048054,-500.0,0.00016712,2]
[335232735,1724001048064,-500.0,0.00016712,2]
[335232736,1724001048074,-500.0,0.00016712,2]
[335232737,1724001048084,-500.0,0.00016712,2]
[335232738,1724001048093,-500.0,0.00016712,2]
[335232739,1724001048103,-500.0,0.00016712,2]
[335232740,1724001048114,-500.0,0.00016712,2]
[335232741,1724001048124,-500.0,0.00016712,2]
[335232742,1724001048135,-500.0,0.00016712,2]
[335232743,1724001048145,-503.1800564,0.00016712,2]
[335232744,1724001048155,-513.1321398,0.00016712,2]
[335232745,1724001048164,-500.0,0.00016712,2]
[335232746,1724001048174,-500.0,0.00016712,2]
[335232747,1724001048186,-505.24686272,0.00016712,2]
[335232748,1724001048195,-510.71326632,0.00016712,2]
[335232749,1724001048206,-509.8537679,0.00016712,2]
[335232750,1724001048215,-500.0,0.00016712,2]
[335232751,1724001048225,-511.01685736,0.00016712,2]
[335232752,1724001048235,-530.88077677,0.00016712,2]
[335232753,1724001048245,-500.0,0.00016712,2]
[335232754,1724001048256,-500.0,0.00016712,2]
[335232755,1724001048266,-500.0,0.00016712,2]
[335232756,1724001048275,-500.0,0.00016712,2]
[335232757,1724001048284,-504.84887392,0.00016712,2]
[335232758,1724001048294,-500.0,0.00016712,2]
[335232759,1724001048304,-500.0,0.00016712,2]
[335232760,1724001048313,-500.0,0.00016712,2]
[335232761,1724001048323,-549.38946756,0.00016712,2]
[335232762,1724001048332,-500.0,0.00016712,2]
[335232763,1724001048342,-500.0,0.00016712,2]
[335232764,1724001048351,-500.0,0.00016712,2]
[335232765,1724001048361,-500.0,0.00016712,2]
[335232766,1724001048371,-500.0,0.00016712,2]
[335232767,1724001048381,-500.0,0.00016712,2]
[335232768,1724001048390,-500.0,0.00016712,2]
[335232769,1724001048400,-151.0,0.00016712,2]
[335232770,1724001048410,-636.84387548,0.00016712,2]
[335232771,1724001048419,-500.0,0.00016712,2]
[335232772,1724001048429,-500.0,0.00016712,2]
[335232773,1724001048438,-189.611065,0.00016712,2]
[335232774,1724001048447,-189.611065,0.00016712,2]
[335232775,1724001048457,-500.0,0.00016712,2]
[335232776,1724001048467,-500.0,0.00016712,2]
[335232777,1724001048476,-500.0,0.00016712,2]
[335232778,1724001048487,-500.0,0.00016712,2]
[335232779,1724001048497,-500.0,0.00016712,2]
[335232780,1724001048506,-500.0,0.00016712,2]
[335232781,1724001048517,-500.0,0.00016712,2]
[335232782,1724001048526,-500.0,0.00016712,2]
[335232783,1724001048536,-794.6,0.00016712,2]
[335232784,1724001048545,-502.12097442,0.00016712,2]
[335232785,1724001048556,-151.0,0.00016712,2]
[335232786,1724001048569,-500.0,0.00016712,2]
[335232787,1724001048579,-500.0,0.00016712,2]
[335232788,1724001048588,-500.0,0.00016712,2]
[335232789,1724001048597,-500.0,0.00016712,2]
[335232790,1724001048608,-500.0,0.00016712,2]
[335232791,1724001048619,-896.83,0.00016712,2]
[335232792,1724001048629,-500.0,0.00016712,2]
[335232793,1724001048727,-358.63815817,0.00016712,2]
[335232794,1724001048738,-500.0,0.00016712,2]
[335232795,1724001048747,-500.0,0.00016712,2]
[335232796,1724001048758,-500.0,0.00016712,2]
[335232797,1724001048767,-500.0,0.00016712,2]
[335232798,1724001048777,-500.0,0.00016712,2]
[335232799,1724001048787,-500.0,0.00016712,2]
[335232800,1724001048796,-500.0,0.00016712,2]
[335232801,1724001048806,-500.0,0.00016712,2]
[335232802,1724001048817,-500.0,0.00016712,2]
[335232803,1724001048828,-500.0,0.00016712,2]
[335232804,1724001048837,-736.4,0.00016712,2]
[335232805,1724001048847,-151.0,0.00016712,2]
[335232806,1724001048856,-500.0,0.00016712,2]
[335232807,1724001048866,-500.0,0.00016712,2]
[335232808,1724001048875,-500.0,0.00016712,2]
[335232809,1724001048886,-500.0,0.00016712,2]
[335232810,1724001048896,-500.0,0.00016712,2]
[335232811,1724001048906,-500.0,0.00016712,2]
[335232812,1724001048918,-500.0,0.00016712,2]
[335232813,1724001048928,-500.0,0.00016712,2]
[335232814,1724001048938,-640.56,0.00016712,2]
[335232815,1724001048948,-151.0,0.00016712,2]
[335232816,1724001048966,-500.0,0.00016712,2]
[335232817,1724001048977,-506.83,0.00016712,2]
[335232818,1724001048986,-151.0,0.00016712,2]
[335232819,1724001048996,-501.93888408,0.00016712,2]
[335232820,1724001049006,-500.0,0.00016712,2]
[335232821,1724001049015,-500.0,0.00016712,2]
[335232822,1724001049025,-500.0,0.00016712,2]
[335232823,1724001049034,-151.0,0.00016712,2]
[335232824,1724001049043,-155.833677,0.00016712,2]
[335232825,1724001049053,-426.16418133,0.00016712,2]
[335232826,1724001049063,-313.130358,0.00016712,2]
[335232827,1724001049072,-501.05059056,0.00016712,2]
[335232828,1724001049081,-313.130358,0.00016712,2]
[335232829,1724001049091,-500.0,0.00016712,2]
[335232830,1724001049100,-500.0,0.00016712,2]
[335232831,1724001049109,-571.39,0.00016712,2]
[335232832,1724001049119,-500.0,0.00016712,2]
[335232833,1724001049128,-1072.02,0.00016712,2]
[335232834,1724001049139,-500.0,0.00016712,2]
[335232835,1724001049148,-500.0,0.00016712,2]
[335232836,1724001049157,-610.10930005,0.00016712,2]
[335232837,1724001049167,-500.0,0.00016712,2]
[335232838,1724001049178,-500.0,0.00016712,2]
[335232839,1724001049188,-500.0,0.00016712,2]
[335232840,1724001049197,-571.47,0.00016712,2]
[335232841,1724001049208,-500.0,0.00016712,2]
[335232842,1724001049217,-694.6,0.00016712,2]
[335232843,1724001049227,-500.0,0.00016712,2]
[335232844,1724001049236,-500.0,0.00016712,2]
[335232845,1724001049246,-500.0,0.00016712,2]
[335232846,1724001049256,-500.0,0.00016712,2]
[335232847,1724001049266,-500.0,0.00016712,2]
[335232848,1724001049276,-500.0,0.00016712,2]
[335232849,1724001049287,-678.73,0.00016712,2]
[335232850,1724001049298,-500.0,0.00016712,2]
[335232851,1724001049309,-500.0,0.00016712,2]
[335232852,1724001049319,-500.0,0.00016712,2]
[335232853,1724001049329,-500.0,0.00016712,2]
[335232854,1724001049340,-1102.01,0.00016712,2]
[335232855,1724001049349,-500.0,0.00016712,2]